Workbook

Sheet 地市名称
A1: 阳江市2024年第四季度公共就业服务机构市场职业供求状况分析
A3: 项 目 | B3: 代码 | C3: 需求人数 | D3: 求职人数 | E3: 求人倍率
A4: 甲 | B4: 乙 | C4: 1 | D4: 2 | E4: 3
A5: 本期有效数 | B5: 1 | C5: 10547 | D5: 10876 | E5: =IFERROR(C5/D5,0) -> 0.97
A7: 续表一
A8: 项 目 | B8: 代码 | C8: 按产业分组的需求人数
C9: 需求人数 | D9: 所占比重（%）
A10: 甲 | B10: 乙 | C10: 4 | D10: 5
A11: 合计 | B11: 2 | C11: =C12+C13+C14 -> 10547 | D11: =SUM(D12:D14) -> 100.00%
A12: 第一产业 | B12: 3 | C12: =C21-C22 -> 2 | D12: =IFERROR(C12/$C$11,0) -> 0.02%
A13: 第二产业 | B13: 4 | C13: =C23-C24+C25-C26+C27+C28 -> 2304 | D13: =IFERROR(C13/$C$11,0) -> 21.85%
A14: 第三产业 | B14: 5 | C14: =C22+C24+C26+C29+C30+C31+C32+C33+C34+C35+C36+C37+C38+C39+C40+C41+C42+C43 -> 8241 | D14: =IFERROR(C14/$C$11,0) -> 78.14%
A16: 续表二
A17: 项 目 | B17: 代码 | C17: 按行业分组的需求人数
C18: 需求人数 | D18: 所占比重（%）
A19: 甲 | B19: 乙 | C19: 6 | D19: 7
A20: 合计 | B20: 6 | C20: =SUM(C21:C43)-C22-C24-C26 -> 10547 | D20: =SUM(D21:D43)-D26-D24-D22 -> 100.00%
A21: 农、林、牧、渔业 | B21: 7 | C21: 3 | D21: =IFERROR(C21/$C$11,0) -> 0.03%
A22: 其中，农、林、牧、渔专业及辅助性活动 | B22: 8 | C22: 1 | D22: =IFERROR(C22/$C$11,0) -> 0.01%
A23: 采矿业 | B23: 9 | C23: 0 | D23: 0.00%
A24: 其中，开采专业及辅助性活动 | B24: 10 | C24: 0 | D24: 0.00%
A25: 制造业 | B25: 11 | C25: 6885 | D25: 65.28%
A26: 其中，金属制品、机械和设备修理业 | B26: 12 | C26: 4862 | D26: 46.10%
A27: 电力、热力、燃气及水生产和供应业 | B27: 13 | C27: 189 | D27: 1.79%
A28: 建筑业 | B28: 14 | C28: 92 | D28: 0.87%
A29: 批发和零售业 | B29: 15 | C29: 165 | D29: 1.56%
A30: 交通运输、仓储和邮政业 | B30: 16 | C30: 101 | D30: 0.96%
A31: 住宿和餐饮业 | B31: 17 | C31: 1733 | D31: 16.43%
A32: 信息传输、软件和信息技术服务业 | B32: 18 | C32: 558 | D32: 5.29%
A33: 金融业 | B33: 19 | C33: 67 | D33: 0.64%
A34: 房地产业 | B34: 20 | C34: 343 | D34: 3.25%
A35: 租赁和商务服务业 | B35: 21 | C35: 77 | D35: 0.73%
A36: 科学研究和技术服务业 | B36: 22 | C36: 0 | D36: 0.00%
A37: 水利、环境和公共设施管理业 | B37: 23 | C37: 0 | D37: 0.00%
A38: 居民服务、修理和其他服务业 | B38: 24 | C38: 181 | D38: 1.72%
A39: 教育 | B39: 25 | C39: 85 | D39: 0.81%
A40: 卫生和社会工作 | B40: 26 | C40: 0 | D40: 0.00%
A41: 文化、体育和娱乐业 | B41: 27 | C41: 68 | D41: 0.64%
A42: 公共管理、社会保障和社会组织 | B42: 28 | C42: 0 | D42: 0.00%
A43: 国际组织 | B43: 29 | C43: 0 | D43: 0.00%
A45: 续表三
A46: 项 目 | B46: 代码 | C46: 按用人单位性质分组的需求人数
C47: 需求人数 | D47: 所占比重（%）
A48: 甲 | B48: 乙 | C48: 8 | D48: 9
A49: 合 计 | B49: 30 | C49: =C50+C63+C64+C65 -> 10547 | D49: =D50+D63+D64+D65 -> 100.00%
A50: 企 业 | B50: 31 | C50: 10547 | D50: =IFERROR(C50/$C$11,0) -> 100.00%
A51: 内资企业 | B51: 32 | C51: 7275 | D51: =IFERROR(C51/$C$11,0) -> 68.98%
A52: 国有企业 | B52: 33 | C52: 22 | D52: 0.21%
A53: 集体企业 | B53: 34 | C53: 27 | D53: 0.26%
A54: 股份合作企业 | B54: 35 | C54: 14 | D54: 0.13%
A55: 联营企业 | B55: 36 | C55: 4677 | D55: 44.34%
A56: 有限责任公司 | B56: 37 | C56: 857 | D56: 8.13%
A57: 股份有限公司 | B57: 38 | C57: 1640 | D57: 15.55%
A58: 私营企业 | B58: 39 | C58: 38 | D58: 0.36%
A59: 其他企业 | B59: 40 | C59: 156 | D59: 1.48%
A60: 港、澳、台商投资企业 | B60: 41 | C60: 42 | D60: 0.40%
A61: 外商投资企业 | B61: 42 | C61: 3074 | D61: 29.15%
A62: 个体经营 | B62: 43 | C62: 4055 | D62: 38.45%
A63: 事 业 | B63: 44 | C63: 0 | D63: 0.00%
A64: 机 关 | B64: 45 | C64: 0 | D64: 0.00%
A65: 其 他 | B65: 46 | C65: 0 | D65: 0.00%
A67: 续表四
A68: 项 目 | B68: 代码 | C68: 按职业分组的供求人数（职业大类）
C69: 需求人数 | D69: 所占比重（%） | E69: 求职人数 | F69: 所占比重（%） | G69: 求人倍率
A70: 甲 | B70: 乙 | C70: 10 | D70: 11 | E70: 12 | F70: 13 | G70: 14
A71: 合计 | B71: 47 | C71: =SUM(C72:C78) -> 10547 | D71: =SUM(D72:D78) -> 100.00% | E71: =SUM(E72:E79) -> 10876 | F71: =SUM(F72:F79) -> 100.00% | G71: =IFERROR(C71/E71,0) -> 0.97
A72: 单位负责人 | B72: 48 | C72: 23 | D72: =IFERROR(C72/$C$11,0) -> 0.22% | E72: 30 | F72: =IFERROR(E72/$E$71,0) -> 0.28% | G72: =IFERROR(C72/(E72+$E$79*F72),0) -> 0.77
A73: 专业技术人员 | B73: 49 | C73: 946 | D73: =IFERROR(C73/$C$11,0) -> 8.97% | E73: 1118 | F73: =IFERROR(E73/$E$71,0) -> 10.28% | G73: =IFERROR(C73/(E73+$E$79*F73),0) -> 0.85
A74: 办事人员和有关人员 | B74: 50 | C74: 2609 | D74: 24.74% | E74: 3374 | F74: 31.02% | G74: 0.77
A75: 社会生产服务和生活服务人员 | B75: 51 | C75: 2498 | D75: 23.68% | E75: 2524 | F75: 23.21% | G75: 0.99
A76: 农林牧渔业生产及辅助人员 | B76: 52 | C76: 2 | D76: 0.02% | E76: 4 | F76: 0.04% | G76: 0.50
A77: 生产制造及有关人员 | B77: 53 | C77: 2395 | D77: 22.71% | E77: 2190 | F77: 20.14% | G77: 1.09
A78: 其他 | B78: 54 | C78: 2074 | D78: 19.66% | E78: 1636 | F78: 15.04% | G78: 1.27
A79: 无要求 | B79: 55 | C79: - | D79: - | F79: 0.00% | G79: -
A88: 续表五
A89: 项 目 | B89: 代码 | C89: 职业代码 | D89: 需求大于求职缺口最大的前二十个职业（职业细类）
D90: 需求人数 | E90: 求职人数 | F90: 缺口数 | G90: 求人倍率
A91: 甲 | B91: 乙 | C91: 15 | D91: 16 | E91: 17 | F91: 18 | G91: 19
A92: 营销员 | B92: 56 | C92: 4010201 | D92: 1042 | E92: 347 | F92: =D92-E92 -> 695 | G92: =IFERROR(D92/E92,0) -> 3.00
A93: 餐厅服务员 | B93: 57 | C93: 4030205 | D93: 678 | E93: 315 | F93: =D93-E93 -> 363 | G93: =IFERROR(D93/E93,0) -> 2.15
A94: 商品营业员 | B94: 58 | C94: 4010203 | D94: 325 | E94: 125 | F94: 200 | G94: 2.60
A95: 快递员 | B95: 59 | C95: 4020708 | D95: 394 | E95: 257 | F95: 137 | G95: 1.53
A96: 家政服务员 | B96: 60 | C96: 4100106 | D96: 220 | E96: 119 | F96: 101 | G96: 1.85
B97: 61 | F97: 0 | G97: 0.00
B98: 62 | F98: 0 | G98: 0.00
B99: 63 | F99: 0 | G99: 0.00
B100: 64 | F100: =D100-E100 -> 0 | G100: =IFERROR(D100/E100,0) -> 0.00
B101: 65 | F101: 0 | G101: 0.00
B102: 66 | F102: 0 | G102: 0.00
B103: 67 | F103: 0 | G103: 0.00
B104: 68 | F104: 0 | G104: 0.00
B105: 69 | F105: 0 | G105: 0.00
B106: 70 | F106: 0 | G106: 0.00
B107: 71 | F107: 0 | G107: 0.00
B108: 72 | F108: 0 | G108: 0.00
B109: 73 | F109: 0 | G109: 0.00
B110: 74 | F110: 0 | G110: 0.00
B111: 75 | F111: 0 | G111: 0.00
A113: 续表六
A114: 项 目 | B114: 代码 | C114: 职业代码 | D114: 需求小于求职缺口最大的前二十个职业（职业细类）
D115: 需求人数 | E115: 求职人数 | F115: 缺口数 | G115: 求人倍率
A116: 甲 | B116: 乙 | C116: 20 | D116: 21 | E116: 22 | F116: 23 | G116: 24
A117: 保安员 | B117: 76 | C117: 4070501 | D117: 122 | E117: 726 | F117: =D117-E117 -> -604 | G117: =IFERROR(D117/E117,0) -> 0.17
A118: 保洁员 | B118: 77 | C118: 4090801 | D118: 207 | E118: 566 | F118: =D118-E118 -> -359 | G118: =IFERROR(D118/E118,0) -> 0.37
A119: 包装工 | B119: 78 | C119: 6310500 | D119: 55 | E119: 194 | F119: -139 | G119: 0.28
A120: 房产经纪人 | B120: 79 | C120: 4060201 | D120: 67 | E120: 174 | F120: -107 | G120: 0.39
A121: 收银员 | B121: 80 | C121: 4010204 | D121: 32 | E121: 89 | F121: -57 | G121: 0.36
B122: 81 | F122: 0 | G122: 0.00
B123: 82 | F123: 0 | G123: 0.00
B124: 83 | F124: 0 | G124: 0.00
B125: 84 | F125: 0 | G125: 0.00
B126: 85 | F126: =D126-E126 -> 0 | G126: =IFERROR(D126/E126,0) -> 0.00
B127: 86 | F127: 0 | G127: 0.00
B128: 87 | F128: 0 | G128: 0.00
B129: 88 | F129: 0 | G129: 0.00
B130: 89 | F130: 0 | G130: 0.00
B131: 90 | F131: 0 | G131: 0.00
B132: 91 | F132: 0 | G132: 0.00
B133: 92 | F133: 0 | G133: 0.00
B134: 93 | F134: 0 | G134: 0.00
B135: 94 | F135: 0 | G135: 0.00
B136: 95 | F136: 0 | G136: 0.00
A146: 续表七
A147: 项 目 | B147: 代码 | C147: 按求职人员类别分组的求职人数
C148: 求职人数 | D148: 所占比重（%）
A149: 甲 | B149: 乙 | C149: 25 | D149: 26
A150: 合计 | B150: 96 | C150: =SUM(C151:C158)-C152 -> 10876 | D150: =SUM(D151:D158)-D152 -> 100.00%
A151: 新成长失业青年 | B151: 97 | C151: 1729 | D151: =IFERROR(C151/$C$150,0) -> 15.90%
A152: 其中：应届高校毕业生 | B152: 98 | C152: 816 | D152: 7.50%
A153: 失业人员 | B153: 99 | C153: 980 | D153: 9.01%
A154: 在业人员 | B154: 100 | C154: 1319 | D154: 12.13%
A155: 退休人员 | B155: 101 | C155: 108 | D155: 0.99%
A156: 在学人员 | B156: 102 | C156: 1533 | D156: 14.10%
A157: 本市农村求职人员 | B157: 103 | C157: 5183 | D157: 47.66%
A158: 外地户籍求职人员 | B158: 104 | C158: 24 | D158: 0.22%
A160: 续表八
A161: 项 目 | B161: 代码 | C161: 劳动力供求人数比较（按性别分组）
C162: 需求人数 | D162: 所占比重（%） | E162: 求职人数 | F162: 所占比重（%） | G162: 求人倍率
A163: 甲 | B163: 乙 | C163: 27 | D163: 28 | E163: 29 | F163: 30 | G163: 31
A164: 合计 | B164: 105 | C164: -- | D164: -- | E164: =SUM(E165:E166) -> 10876 | F164: =SUM(F165:F166) -> 100.00% | G164: --
A165: 男 | B165: 106 | C165: -- | D165: -- | E165: 6253 | F165: =IFERROR(E165/$E$164,0) -> 57.49% | G165: --
A166: 女 | B166: 107 | C166: -- | D166: -- | E166: 4623 | F166: =IFERROR(E166/$E$164,0) -> 42.51% | G166: --
A167: 无要求 | B167: 108 | C167: -- | D167: -- | E167: -- | F167: -- | G167: --
A169: 续表九
A170: 项 目 | B170: 代码 | C170: 劳动力供求人数比较（按年龄分组）
C171: 需求人数 | D171: 需求比重（%） | E171: 求职人数 | F171: 求职比重（%） | G171: 求人倍率
A172: 甲 | B172: 乙 | C172: 32 | D172: 33 | E172: 34 | F172: 35 | G172: 36
A173: 合计 | B173: 109 | C173: =SUM(C174:C178) -> 10547 | D173: =SUM(D174:D178) -> 100.00% | E173: =SUM(E174:E177) -> 10876 | F173: =SUM(F174:F177) -> 100.00% | G173: =IF(E173=0,0,C173/E173) -> 0.97
A174: 16-24岁 | B174: 110 | C174: 3268 | D174: =IFERROR(C174/$C$197,0) -> 30.99% | E174: 4377 | F174: =IFERROR(E174/$E$173,0) -> 40.24% | G174: =IFERROR((C174+$C$178*F174)/E174,0) -> 0.90
A175: 25-34岁 | B175: 111 | C175: 2849 | D175: =IFERROR(C175/$C$197,0) -> 27.01% | E175: 3039 | F175: =IFERROR(E175/$E$173,0) -> 27.94% | G175: =IFERROR((C175+$C$178*F175)/E175,0) -> 1.09
A176: 35-44岁 | B176: 112 | C176: 1708 | D176: =IFERROR(C176/$C$197,0) -> 16.19% | E176: 1956 | F176: =IFERROR(E176/$E$173,0) -> 17.98% | G176: =IFERROR((C176+$C$178*F176)/E176,0) -> 1.02
A177: 45岁以上 | B177: 113 | C177: 1074 | D177: =IFERROR(C177/$C$197,0) -> 10.18% | E177: 1504 | F177: =IFERROR(E177/$E$173,0) -> 13.83% | G177: =IFERROR((C177+$C$178*F177)/E177,0) -> 0.87
A178: 无要求 | B178: 114 | C178: 1648 | D178: =IFERROR(C178/$C$197,0) -> 15.63% | E178: -- | F178: -- | G178: --
A180: 续表十
A181: 项 目 | B181: 代码 | C181: 劳动力供求人数比较（按文化程度分组）
C182: 需求人数 | D182: 需求比重（%） | E182: 求职人数 | F182: 求职比重（%） | G182: 求人倍率
A183: 甲 | B183: 乙 | C183: 37 | D183: 38 | E183: 39 | F183: 40 | G183: 41
A184: 合计 | B184: 115 | C184: =SUM(C185:C191)-C187 -> 10547 | D184: =SUM(D185:D191)-D187 -> 100.00% | E184: =SUM(E185:E190)-E187 -> 10876 | F184: =SUM(F185:F190)-F187 -> 100.00% | G184: =IF(E184=0,0,C184/E184) -> 0.97
A185: 初中及以下 | B185: 116 | C185: 2247 | D185: =IFERROR(C185/$C$197,0) -> 21.30% | E185: 2808 | F185: =IFERROR(E185/$E$184,0) -> 25.82% | G185: =IFERROR((C185+$C$191*F185)/E185,0) -> 0.90
A186: 高中 | B186: 117 | C186: 3456 | D186: 32.77% | E186: 3766 | F186: 34.63% | G186: 1.02
A187: 其中：职高、技校、中专 | B187: 118 | C187: 2649 | D187: 25.12% | E187: 2203 | F187: 20.26% | G187: 1.31
A188: 大专 | B188: 119 | C188: 3009 | D188: 28.53% | E188: 3589 | F188: 33.00% | G188: 0.94
A189: 大学 | B189: 120 | C189: 704 | D189: 6.67% | E189: 710 | F189: 6.53% | G189: 1.10
A190: 硕士以上 | B190: 121 | C190: 5 | D190: 0.05% | E190: 3 | F190: 0.03% | G190: 1.77
A191: 无要求 | B191: 122 | C191: 1126 | D191: 10.68% | E191: -- | F191: -- | G191: --
A193: 续表十一
A194: 项 目 | B194: 代码 | C194: 劳动力供求人数比较（按技术等级分组）
C195: 需求人数 | D195: 需求比重（%） | E195: 求职人数 | F195: 求职比重（%） | G195: 求人倍率
A196: 甲 | B196: 乙 | C196: 42 | D196: 43 | E196: 44 | F196: 45 | G196: 46
A197: 合计 | B197: 123 | C197: =SUM(C198:C207) -> 10547 | D197: =SUM(D198:D207) -> 100.00% | E197: =SUM(E198:E206) -> 10876 | F197: =SUM(F198:F206) -> 100.00% | G197: =IF(E197=0,0,C197/E197) -> 0.97
A198: 职业资格五级(初级技能) | B198: 124 | C198: 737 | D198: =IFERROR(C198/$C$197,0) -> 6.99% | E198: 685 | F198: =IFERROR(E198/$E$184,0) -> 6.30% | G198: =IFERROR((C198+$C$207*F198)/E198,0) -> 1.87
A199: 职业资格四级(中级技能) | B199: 125 | C199: 420 | D199: =IFERROR(C199/$C$197,0) -> 3.98% | E199: 317 | F199: =IFERROR(E199/$E$184,0) -> 2.91% | G199: =IFERROR((C199+$C$207*F199)/E199,0) -> 2.12
A200: 职业资格三级(高级技能) | B200: 126 | C200: 9 | D200: =IFERROR(C200/$C$197,0) -> 0.09% | E200: 7 | F200: 0.06% | G200: 2.08
A201: 职业资格二级(技师) | B201: 127 | C201: 5 | D201: =IFERROR(C201/$C$197,0) -> 0.05% | E201: 2 | F201: 0.02% | G201: 3.29
A202: 职业资格一级(高级技师) | B202: 128 | C202: 8 | D202: =IFERROR(C202/$C$197,0) -> 0.08% | E202: 4 | F202: 0.04% | G202: 2.79
A203: 初级职称 | B203: 129 | C203: 746 | D203: 7.07% | E203: 692 | F203: 6.36% | G203: 1.87
A204: 中级职称 | B204: 130 | C204: 20 | D204: 0.19% | E204: 17 | F204: 0.16% | G204: 1.97
A205: 高级职称 | B205: 131 | C205: 4 | D205: 0.04% | E205: 2 | F205: 0.02% | G205: 2.79
A206: 无技术等级或职称 | B206: 132 | C206: —— | D206: -- | E206: 9150 | F206: 84.13% | G206: --
A207: 无要求 | B207: 133 | C207: 8598 | D207: =IFERROR(C207/$C$197,0) -> 81.52% | E207: -- | F207: -- | G207: --

Sheet 汇总表
A1: 供求总体人数 | D1: 按产业分组的需求人数 | G1: 按行业分组的需求人数 | AD1: 按用人单位性质分组的需求人数 | AT1: 按职业分组的供求人数 | BH1: 表6 需求大于求职缺口最大的前二十个职业（职业细类） | DQ1: 表7 需求小于求职缺口最大的前二十个职业（职业细类） | FX1: 表8 按求职人员类别分组的求职人数 | GF1: 表9 按性别分组的供求人数 | GK1: 表10 按年龄分组的供求人数 | GT1: 表11 按文化程度分组的供求人数 | HG1: 表12 按技术等级分组的供求人数
A2: 1 | B2: 2 | C2: 3 | D2: 4 | E2: 5 | F2: 6 | G2: 7 | H2: 8 | I2: 9 | J2: 10 | K2: 11 | L2: 12 | M2: 13 | N2: 14 | O2: 15 | P2: 16 | Q2: 17 | R2: 18 | S2: 19 | T2: 20 | U2: 21 | V2: 22 | W2: 23 | X2: 24 | Y2: 25 | Z2: 26 | AA2: 27 | AB2: 28 | AC2: 29 | AD2: 30 | AE2: 31 | AF2: 32 | AG2: 33 | AH2: 34 | AI2: 35 | AJ2: 36 | AK2: 37 | AL2: 38 | AM2: 39 | AN2: 40 | AO2: 41 | AP2: 42 | AQ2: 43 | AR2: 44 | AS2: 45 | AT2: 46 | AU2: 47 | AV2: 48 | AW2: 49 | AX2: 50 | AY2: 51 | AZ2: 52 | BA2: 53 | BB2: 54 | BC2: 55 | BD2: 56 | BE2: 57 | BF2: 58 | BG2: 59 | BH2: 60 | BI2: 61 | BJ2: 62 | BK2: 63 | BL2: 64 | BM2: 65 | BN2: 66 | BO2: 67 | BP2: 68 | BQ2: 69 | BR2: 70 | BS2: 71 | BT2: 72 | BU2: 73 | BV2: 74 | BW2: 75 | BX2: 76 | BY2: 77 | BZ2: 78 | CA2: 79 | CB2: 80 | CC2: 81 | CD2: 82 | CE2: 83 | CF2: 84 | CG2: 85 | CH2: 86 | CI2: 87 | CJ2: 88 | CK2: 89 | CL2: 90 | CM2: 91 | CN2: 92 | CO2: 93 | CP2: 94 | CQ2: 95 | CR2: 96 | CS2: 97 | CT2: 98 | CU2: 99 | CV2: 100 | CW2: 101 | CX2: 102 | CY2: 103 | CZ2: 104 | DA2: 105 | DB2: 106 | DC2: 107 | DD2: 108 | DE2: 109 | DF2: 110 | DG2: 111 | DH2: 112 | DI2: 113 | DJ2: 114 | DK2: 115 | DL2: 116 | DM2: 117 | DN2: 118 | DO2: 119 | DP2: 120 | DQ2: 121 | DR2: 122 | DS2: 123 | DT2: 124 | DU2: 125 | DV2: 126 | DW2: 127 | DX2: 128 | DY2: 129 | DZ2: 130 | EA2: 131 | EB2: 132 | EC2: 133 | ED2: 134 | EE2: 135 | EF2: 136 | EG2: 137 | EH2: 138 | EI2: 139 | EJ2: 140 | EK2: 141 | EL2: 142 | EM2: 143 | EN2: 144 | EO2: 145 | EP2: 146 | EQ2: 147 | ER2: 148 | ES2: 149 | ET2: 150 | EU2: 151 | EV2: 152 | EW2: 153 | EX2: 154 | EY2: 155 | EZ2: 156 | FA2: 157 | FB2: 158 | FC2: 159 | FD2: 160 | FE2: 161 | FF2: 162 | FG2: 163 | FH2: 164 | FI2: 165 | FJ2: 166 | FK2: 167 | FL2: 168 | FM2: 169 | FN2: 170 | FO2: 171 | FP2: 172 | FQ2: 173 | FR2: 174 | FS2: 175 | FT2: 176 | FU2: 177 | FV2: 178 | FW2: 179 | FX2: 180 | FY2: 181 | FZ2: 182 | GA2: 183 | GB2: 184 | GC2: 185 | GD2: 186 | GE2: 187 | GF2: 188 | GG2: 189 | GH2: 190 | GI2: 191 | GJ2: 192 | GK2: 193 | GL2: 194 | GM2: 195 | GN2: 196 | GO2: 197 | GP2: 198 | GQ2: 199 | GR2: 200 | GS2: 201 | GT2: 202 | GU2: 203 | GV2: 204 | GW2: 205 | GX2: 206 | GY2: 207 | GZ2: 208 | HA2: 209 | HB2: 210 | HC2: 211 | HD2: 212 | HE2: 213 | HF2: 214 | HG2: 215 | HH2: 216 | HI2: 217 | HJ2: 218 | HK2: 219 | HL2: 220 | HM2: 221 | HN2: 222 | HO2: 223 | HP2: 224 | HQ2: 225 | HR2: 226 | HS2: 227 | HT2: 228 | HU2: 229 | HV2: 230 | HW2: 231 | HX2: 232
A3: =地市名称!C3 -> 需求人数 | B3: =地市名称!D3 -> 求职人数 | C3: =地市名称!E3 -> 求人倍率 | D3: =地市名称!A12 -> 第一产业 | E3: =地市名称!A13 -> 第二产业 | F3: =地市名称!A14 -> 第三产业 | G3: =地市名称!A21 -> 农、林、牧、渔业 | H3: 其中，农、林、牧、渔专业及辅助性活动 | I3: =地市名称!A23 -> 采矿业 | J3: 其中，开采专业及辅助性活动 | K3: =地市名称!A25 -> 制造业 | L3: 其中，金属制品、机械和设备修理业 | M3: =地市名称!A27 -> 电力、热力、燃气及水生产和供应业 | N3: =地市名称!A28 -> 建筑业 | O3: =地市名称!A29 -> 批发和零售业 | P3: =地市名称!A30 -> 交通运输、仓储和邮政业 | Q3: =地市名称!A31 -> 住宿和餐饮业 | R3: =地市名称!A32 -> 信息传输、软件和信息技术服务业 | S3: =地市名称!A33 -> 金融业 | T3: =地市名称!A34 -> 房地产业 | U3: =地市名称!A35 -> 租赁和商务服务业 | V3: =地市名称!A36 -> 科学研究和技术服务业 | W3: =地市名称!A37 -> 水利、环境和公共设施管理业 | X3: =地市名称!A38 -> 居民服务、修理和其他服务业 | Y3: =地市名称!A39 -> 教育 | Z3: =地市名称!A40 -> 卫生和社会工作 | AA3: =地市名称!A41 -> 文化、体育和娱乐业 | AB3: =地市名称!A42 -> 公共管理、社会保障和社会组织 | AC3: =地市名称!A43 -> 国际组织 | AD3: =地市名称!A50 -> 企 业 | AE3: =地市名称!A51 -> 内资企业 | AF3: =地市名称!A52 -> 国有企业 | AG3: =地市名称!A53 -> 集体企业 | AH3: =地市名称!A54 -> 股份合作企业 | AI3: =地市名称!A55 -> 联营企业 | AJ3: =地市名称!A56 -> 有限责任公司 | AK3: =地市名称!A57 -> 股份有限公司 | AL3: =地市名称!A58 -> 私营企业 | AM3: =地市名称!A59 -> 其他企业 | AN3: =地市名称!A60 -> 港、澳、台商投资企业 | AO3: =地市名称!A61 -> 外商投资企业 | AP3: =地市名称!A62 -> 个体经营 | AQ3: =地市名称!A63 -> 事 业 | AR3: =地市名称!A64 -> 机 关 | AS3: =地市名称!A65 -> 其 他 | AT3: 单位负责人需求人数 | AU3: 单位负责人求职人数 | AV3: 专业技术人员需求人数 | AW3: 专业技术人员求职人数 | AX3: 办事人员和有关人员需求人数 | AY3: 办事人员和有关人员求职人数 | AZ3: 社会生产服务和生活服务人员需求人数 | BA3: 社会生产服务和生活服务人员求职人数 | BB3: 农林牧渔业生产及辅助人员需求人数 | BC3: 农林牧渔业生产及辅助人员求职人数 | BD3: 生产制造及有关人员需求人数 | BE3: 生产制造及有关人员求职人数 | BF3: 其他需求人数 | BG3: 其他求职人数 | BH3: 工种名称1 | BI3: 工种1需求人数 | BJ3: 工种1求职人数 | BK3: 工种名称2 | BL3: 工种2需求人数 | BM3: 工种2求职人数 | BN3: 工种名称3 | BO3: 工种3需求人数 | BP3: 工种3求职人数 | BQ3: 工种名称4 | BR3: 工种4需求人数 | BS3: 工种4求职人数 | BT3: 工种名称5 | BU3: 工种5需求人数 | BV3: 工种5求职人数 | BW3: 工种名称6 | BX3: 工种6需求人数 | BY3: 工种6求职人数 | BZ3: 工种名称7 | CA3: 工种7需求人数 | CB3: 工种7求职人数 | CC3: 工种名称8 | CD3: 工种8需求人数 | CE3: 工种8求职人数 | CF3: 工种名称9 | CG3: 工种9需求人数 | CH3: 工种9求职人数 | CI3: 工种名称10 | CJ3: 工种10需求人数 | CK3: 工种10求职人数 | CL3: 工种名称11 | CM3: 工种11需求人数 | CN3: 工种11求职人数 | CO3: 工种名称12 | CP3: 工种12需求人数 | CQ3: 工种12求职人数 | CR3: 工种名称13 | CS3: 工种13需求人数 | CT3: 工种13求职人数 | CU3: 工种名称14 | CV3: 工种14需求人数 | CW3: 工种14求职人数 | CX3: 工种名称15 | CY3: 工种15需求人数 | CZ3: 工种15求职人数 | DA3: 工种名称16 | DB3: 工种16需求人数 | DC3: 工种16求职人数 | DD3: 工种名称17 | DE3: 工种17需求人数 | DF3: 工种17求职人数 | DG3: 工种名称18 | DH3: 工种18需求人数 | DI3: 工种18求职人数 | DJ3: 工种名称19 | DK3: 工种19需求人数 | DL3: 工种19求职人数 | DM3: 工种名称20 | DN3: 工种20需求人数 | DO3: 工种20求职人数 | DP3: 工种名称1 | DQ3: 工种1需求人数 | DR3: 工种1求职人数 | DS3: 工种名称2 | DT3: 工种2需求人数 | DU3: 工种2求职人数 | DV3: 工种名称3 | DW3: 工种3需求人数 | DX3: 工种3求职人数 | DY3: 工种名称4 | DZ3: 工种4需求人数 | EA3: 工种4求职人数 | EB3: 工种名称5 | EC3: 工种5需求人数 | ED3: 工种5求职人数 | EE3: 工种名称6 | EF3: 工种6需求人数 | EG3: 工种6求职人数 | EH3: 工种名称7 | EI3: 工种7需求人数 | EJ3: 工种7求职人数 | EK3: 工种名称8 | EL3: 工种8需求人数 | EM3: 工种8求职人数 | EN3: 工种名称9 | EO3: 工种9需求人数 | EP3: 工种9求职人数 | EQ3: 工种名称10 | ER3: 工种10需求人数 | ES3: 工种10求职人数 | ET3: 工种名称11 | EU3: 工种11需求人数 | EV3: 工种11求职人数 | EW3: 工种名称12 | EX3: 工种12需求人数 | EY3: 工种12求职人数 | EZ3: 工种名称13 | FA3: 工种13需求人数 | FB3: 工种13求职人数 | FC3: 工种名称14 | FD3: 工种14需求人数 | FE3: 工种14求职人数 | FF3: 工种名称15 | FG3: 工种15需求人数 | FH3: 工种15求职人数 | FI3: 工种名称16 | FJ3: 工种16需求人数 | FK3: 工种16求职人数 | FL3: 工种名称17 | FM3: 工种17需求人数 | FN3: 工种17求职人数 | FO3: 工种名称18 | FP3: 工种18需求人数 | FQ3: 工种18求职人数 | FR3: 工种名称19 | FS3: 工种19需求人数 | FT3: 工种19求职人数 | FU3: 工种名称20 | FV3: 工种20需求人数 | FW3: 工种20求职人数 | FX3: =地市名称!A151 -> 新成长失业青年 | FY3: =地市名称!A152 -> 其中：应届高校毕业生 | FZ3: =地市名称!A153 -> 失业人员 | GA3: =地市名称!A154 -> 在业人员 | GB3: =地市名称!A155 -> 退休人员 | GC3: =地市名称!A156 -> 在学人员 | GD3: =地市名称!A157 -> 本市农村求职人员 | GE3: =地市名称!A158 -> 外地户籍求职人员 | GF3: 性别男需求人数 | GG3: 性别男求职人数 | GH3: 性别女需求人数 | GI3: 性别女求职人数 | GJ3: 性别无要求需求人数 | GK3: 年龄16-24岁需求人数 | GL3: 年龄16-24岁求职人数 | GM3: 年龄25-34岁需求人数 | GN3: 年龄25-34岁求职人数 | GO3: 年龄35-44岁需求人数 | GP3: 年龄35-44岁求职人数 | GQ3: 年龄45岁以上需求人数 | GR3: 年龄45岁以上求职人数 | GS3: 年龄无要求需求人数 | GT3: 初中及以下需求人数 | GU3: 初中及以下求职人数 | GV3: 高中需求人数 | GW3: 高中求职人数 | GX3: 其中：职高、技校、中专需求人数 | GY3: 其中：职高、技校、中专求职人数 | GZ3: 大专需求人数 | HA3: 大专求职人数 | HB3: 大学需求人数 | HC3: 大学求职人数 | HD3: 硕士以上需求人数 | HE3: 硕士以上求职人数 | HF3: 无要求需求人数 | HG3: 职业资格五级(初级技能)需求人数 | HH3: 职业资格五级(初级技能)求职人数 | HI3: 职业资格四级(中级技能)需求人数 | HJ3: 职业资格四级(中级技能)求职人数 | HK3: 职业资格三级(高级技能)需求人数 | HL3: 职业资格三级(高级技能)求职人数 | HM3: 职业资格二级(技师)需求人数 | HN3: 职业资格二级(技师)求职人数 | HO3: 职业资格一级(高级技师)需求人数 | HP3: 职业资格一级(高级技师)求职人数 | HQ3: 初级专业技术职务需求人数 | HR3: 初级专业技术职务求职人数 | HS3: 中级专业技术职务需求人数 | HT3: 中级专业技术职务求职人数 | HU3: 高级专业技术职务需求人数 | HV3: 高级专业技术职务求职人数 | HW3: 无技术等级或职称求职人数 | HX3: 技术等级无要求需求人数
A4: =地市名称!C5 -> 10547 | B4: =地市名称!D5 -> 10876 | C4: =A4/B4 -> 0.97 | D4: =地市名称!C12 -> 2 | E4: =地市名称!C13 -> 2304 | F4: =地市名称!C14 -> 8241 | G4: =地市名称!C21 -> 3 | H4: =地市名称!C22 -> 1 | I4: =地市名称!C23 -> 0 | J4: =地市名称!C24 -> 0 | K4: =地市名称!C25 -> 6885 | L4: =地市名称!C26 -> 4862 | M4: =地市名称!C27 -> 189 | N4: =地市名称!C28 -> 92 | O4: =地市名称!C29 -> 165 | P4: =地市名称!C30 -> 101 | Q4: =地市名称!C31 -> 1733 | R4: =地市名称!C32 -> 558 | S4: =地市名称!C33 -> 67 | T4: =地市名称!C34 -> 343 | U4: =地市名称!C35 -> 77 | V4: =地市名称!C36 -> 0 | W4: =地市名称!C37 -> 0 | X4: =地市名称!C38 -> 181 | Y4: =地市名称!C39 -> 85 | Z4: =地市名称!C40 -> 0 | AA4: =地市名称!C41 -> 68 | AB4: =地市名称!C42 -> 0 | AC4: =地市名称!C43 -> 0 | AD4: =地市名称!C50 -> 10547 | AE4: =地市名称!C51 -> 7275 | AF4: =地市名称!C52 -> 22 | AG4: =地市名称!C53 -> 27 | AH4: =地市名称!C54 -> 14 | AI4: =地市名称!C55 -> 4677 | AJ4: =地市名称!C56 -> 857 | AK4: =地市名称!C57 -> 1640 | AL4: =地市名称!C58 -> 38 | AM4: =地市名称!C59 -> 156 | AN4: =地市名称!C60 -> 42 | AO4: =地市名称!C61 -> 3074 | AP4: =地市名称!C62 -> 4055 | AQ4: =地市名称!C63 -> 0 | AR4: =地市名称!C64 -> 0 | AS4: =地市名称!C65 -> 0 | AT4: =地市名称!C72 -> 23 | AU4: =地市名称!E72 -> 30 | AV4: =地市名称!C73 -> 946 | AW4: =地市名称!E73 -> 1118 | AX4: =地市名称!C74 -> 2609 | AY4: =地市名称!E74 -> 3374 | AZ4: =地市名称!C75 -> 2498 | BA4: =地市名称!E75 -> 2524 | BB4: =地市名称!C76 -> 2 | BC4: =地市名称!E76 -> 4 | BD4: =地市名称!C77 -> 2395 | BE4: =地市名称!E77 -> 2190 | BF4: =地市名称!C78 -> 2074 | BG4: =地市名称!E78 -> 1636 | BH4: =地市名称!A92 -> 营销员 | BI4: =地市名称!D92 -> 1042 | BJ4: =地市名称!E92 -> 347 | BK4: =地市名称!A93 -> 餐厅服务员 | BL4: =地市名称!D93 -> 678 | BM4: =地市名称!E93 -> 315 | BN4: =地市名称!A94 -> 商品营业员 | BO4: =地市名称!D94 -> 325 | BP4: =地市名称!E94 -> 125 | BQ4: =地市名称!A95 -> 快递员 | BR4: =地市名称!D95 -> 394 | BS4: =地市名称!E95 -> 257 | BT4: =地市名称!A96 -> 家政服务员 | BU4: =地市名称!D96 -> 220 | BV4: =地市名称!E96 -> 119 | BW4: =地市名称!A97 -> 0 | BX4: =地市名称!D97 -> 0 | BY4: =地市名称!E97 -> 0 | BZ4: =地市名称!A98 -> 0 | CA4: =地市名称!D98 -> 0 | CB4: =地市名称!E98 -> 0 | CC4: =地市名称!A99 -> 0 | CD4: =地市名称!D99 -> 0 | CE4: =地市名称!E99 -> 0 | CF4: =地市名称!A100 -> 0 | CG4: =地市名称!D100 -> 0 | CH4: =地市名称!E100 -> 0 | CI4: =地市名称!A101 -> 0 | CJ4: =地市名称!D101 -> 0 | CK4: =地市名称!E101 -> 0 | CL4: =地市名称!A102 -> 0 | CM4: =地市名称!D102 -> 0 | CN4: =地市名称!E102 -> 0 | CO4: =地市名称!A103 -> 0 | CP4: =地市名称!D103 -> 0 | CQ4: =地市名称!E103 -> 0 | CR4: =地市名称!A104 -> 0 | CS4: =地市名称!D104 -> 0 | CT4: =地市名称!E104 -> 0 | CU4: =地市名称!A105 -> 0 | CV4: =地市名称!D105 -> 0 | CW4: =地市名称!E105 -> 0 | CX4: =地市名称!A106 -> 0 | CY4: =地市名称!D106 -> 0 | CZ4: =地市名称!E106 -> 0 | DA4: =地市名称!A107 -> 0 | DB4: =地市名称!D107 -> 0 | DC4: =地市名称!E107 -> 0 | DD4: =地市名称!A108 -> 0 | DE4: =地市名称!D108 -> 0 | DF4: =地市名称!E108 -> 0 | DG4: =地市名称!A109 -> 0 | DH4: =地市名称!D109 -> 0 | DI4: =地市名称!E109 -> 0 | DJ4: =地市名称!A110 -> 0 | DK4: =地市名称!D110 -> 0 | DL4: =地市名称!E110 -> 0 | DM4: =地市名称!A111 -> 0 | DN4: =地市名称!D111 -> 0 | DO4: =地市名称!E111 -> 0 | DP4: =地市名称!A117 -> 保安员 | DQ4: =地市名称!D117 -> 122 | DR4: =地市名称!E117 -> 726 | DS4: =地市名称!A118 -> 保洁员 | DT4: =地市名称!D118 -> 207 | DU4: =地市名称!E118 -> 566 | DV4: =地市名称!A119 -> 包装工 | DW4: =地市名称!D119 -> 55 | DX4: =地市名称!E119 -> 194 | DY4: =地市名称!A120 -> 房产经纪人 | DZ4: =地市名称!D120 -> 67 | EA4: =地市名称!E120 -> 174 | EB4: =地市名称!A121 -> 收银员 | EC4: =地市名称!D121 -> 32 | ED4: =地市名称!E121 -> 89 | EE4: =地市名称!A122 -> 0 | EF4: =地市名称!D122 -> 0 | EG4: =地市名称!E122 -> 0 | EH4: =地市名称!A123 -> 0 | EI4: =地市名称!D123 -> 0 | EJ4: =地市名称!E123 -> 0 | EK4: =地市名称!A124 -> 0 | EL4: =地市名称!D124 -> 0 | EM4: =地市名称!E124 -> 0 | EN4: =地市名称!A125 -> 0 | EO4: =地市名称!D125 -> 0 | EP4: =地市名称!E125 -> 0 | EQ4: =地市名称!A126 -> 0 | ER4: =地市名称!D126 -> 0 | ES4: =地市名称!E126 -> 0 | ET4: =地市名称!A127 -> 0 | EU4: =地市名称!D127 -> 0 | EV4: =地市名称!E127 -> 0 | EW4: =地市名称!A128 -> 0 | EX4: =地市名称!D128 -> 0 | EY4: =地市名称!E128 -> 0 | EZ4: =地市名称!A129 -> 0 | FA4: =地市名称!D129 -> 0 | FB4: =地市名称!E129 -> 0 | FC4: =地市名称!A130 -> 0 | FD4: =地市名称!D130 -> 0 | FE4: =地市名称!E130 -> 0 | FF4: =地市名称!A131 -> 0 | FG4: =地市名称!D131 -> 0 | FH4: =地市名称!D131 -> 0 | FI4: =地市名称!A132 -> 0 | FJ4: =地市名称!D132 -> 0 | FK4: =地市名称!D132 -> 0 | FL4: =地市名称!A133 -> 0 | FM4: =地市名称!D133 -> 0 | FN4: =地市名称!E133 -> 0 | FO4: =地市名称!A134 -> 0 | FP4: =地市名称!D134 -> 0 | FQ4: =地市名称!E134 -> 0 | FR4: =地市名称!A135 -> 0 | FS4: =地市名称!D135 -> 0 | FT4: =地市名称!E135 -> 0 | FU4: =地市名称!A136 -> 0 | FV4: =地市名称!D136 -> 0 | FW4: =地市名称!E136 -> 0 | FX4: =地市名称!C151 -> 1729 | FY4: =地市名称!C152 -> 816 | FZ4: =地市名称!C153 -> 980 | GA4: =地市名称!C154 -> 1319 | GB4: =地市名称!C155 -> 108 | GC4: =地市名称!C156 -> 1533 | GD4: =地市名称!C157 -> 5183 | GE4: =地市名称!C158 -> 24 | GF4: =地市名称!C165 -> -- | GG4: =地市名称!E165 -> 6253 | GH4: =地市名称!C166 -> -- | GI4: =地市名称!E166 -> 4623 | GJ4: =地市名称!C167 -> -- | GK4: =地市名称!C174 -> 3268 | GL4: =地市名称!E174 -> 4377 | GM4: =地市名称!C175 -> 2849 | GN4: =地市名称!E175 -> 3039 | GO4: =地市名称!C176 -> 1708 | GP4: =地市名称!E176 -> 1956 | GQ4: =地市名称!C177 -> 1074 | GR4: =地市名称!E177 -> 1504 | GS4: =地市名称!C178 -> 1648 | GT4: =地市名称!C185 -> 2247 | GU4: =地市名称!E185 -> 2808 | GV4: =地市名称!C186 -> 3456 | GW4: =地市名称!E186 -> 3766 | GX4: =地市名称!E187 -> 2203 | GY4: =地市名称!E187 -> 2203 | GZ4: =地市名称!C188 -> 3009 | HA4: =地市名称!E188 -> 3589 | HB4: =地市名称!C189 -> 704 | HC4: =地市名称!E189 -> 710 | HD4: =地市名称!C190 -> 5 | HE4: =地市名称!E190 -> 3 | HF4: =地市名称!C191 -> 1126 | HG4: =地市名称!C198 -> 737 | HH4: =地市名称!E198 -> 685 | HI4: =地市名称!C199 -> 420 | HJ4: =地市名称!E199 -> 317 | HK4: =地市名称!C200 -> 9 | HL4: =地市名称!E200 -> 7 | HM4: =地市名称!C201 -> 5 | HN4: =地市名称!E201 -> 2 | HO4: =地市名称!C202 -> 8 | HP4: =地市名称!E202 -> 4 | HQ4: =地市名称!C203 -> 746 | HR4: =地市名称!E203 -> 692 | HS4: =地市名称!C204 -> 20 | HT4: =地市名称!E204 -> 17 | HU4: =地市名称!C205 -> 4 | HV4: =地市名称!E205 -> 2 | HW4: =地市名称!E206 -> 9150 | HX4: =地市名称!C207 -> 8598
